Cogmind - Beta 12 @@@ ROGUE MODE // 2023.11.16 @ 08:07:20 Player: ButtBot Result: Destroyed by P-60 Hacker with Shock Rifle Performance ------------- Evolutions (4) 2000 Regions Visited (9) 1800 Robots Destroyed (19) 95 Value Destroyed (347) 347 Prototype IDs (34) 680 Alien Tech Used (0) 0 Bonus (307) 307 TOTAL SCORE: 5229 Bonus ------- Follower Combat Kills 7 Aligned with FarCom 300 Cogmind --------- Core Integrity 0/850 Matter 290/300 Energy 100/100 System Corruption 13% Temperature Cool (0) Movement Core (200) Ox3 Location -6/Factory Parts ------- > --- POWER (2) -------- (None) > --- PROPULSION (6) --- (None) > --- UTILITY (5) ------ Medium Storage Unit Visual Processing Unit Enhanced Optical Array Advanced Signal Interpreter > --- WEAPON (2) ------- (None) > --- INVENTORY (10) --- Improved Ion Engine Light Nuclear Core Improved Cryofiber Web Advanced Heat Sink Improved Sensor Array Advanced Sensor Array Improved Power Shielding System Restoration Module Improved Light Cannon Peak State ------------ > --- POWER ------------ Light Deuterium Engine > --- PROPULSION ------- Improved Flight Unit Improved Flight Unit Improved Flight Unit Improved Flight Unit > --- UTILITY ---------- Medium Storage Unit Improved Trap Scanner Visual Processing Unit Enhanced Optical Array Advanced Signal Interpreter > --- WEAPON ----------- (None) > --- INVENTORY -------- Improved Ion Engine Light Nuclear Core Improved Cryofiber Web Advanced Heat Sink Improved Sensor Array Improved Power Shielding Improved Utility Shielding System Restoration Module Light Assault Rifle Improved Light Cannon [Rating: 36] Favorites ----------- Power Improved Ion Engine Engine Improved Ion Engine Power Core Nuclear Core Propulsion Armored Wheel Wheel Armored Wheel Hover Unit Aerolev Unit Flight Unit Improved Flight Unit Utility Signal Interpreter Device ECM Suite Storage High-capacity Storage Unit Processor Signal Interpreter Weapon Light Assault Rifle Energy Gun Small Laser Ballistic Gun Light Assault Rifle Ballistic Cannon Improved Light Cannon Launcher Mini Grenade Launcher Special Melee Weapon Datajack Build | -11 -10 -9 -9 -9 -8 -8 -8 -8 -6 ------- Run | Jun Mat Mat Min Exi Min Mat Sto Rec Fac Slots Evolved 8 | . . 2 . . . 2 . . 4 Power 1 | . . . . . . . . . 1 Propulsion 4 | . . 1 . . . 1 . . 2 Utility 3 | . . 1 . . . 1 . . 1 Weapon . | . . . . . . . . . . Parts Attached 62 | 6 6 7 1 3 . 6 26 3 4 Power 8 | 1 1 . . 2 . . 3 1 . Engine 7 | 1 1 . . 2 . . 2 1 . Core 1 | . . . . . . . 1 . . Reactor . | . . . . . . . . . . Propulsion 23 | 2 2 2 . . . 2 15 . . Treads . | . . . . . . . . . . Leg . | . . . . . . . . . . Wheel 8 | 2 2 2 . . . 2 . . . Hover 6 | . . . . . . . 6 . . Flight 9 | . . . . . . . 9 . . Utility 14 | 1 2 2 . 1 . 2 3 . 3 Device 5 | . . 2 . . . 1 1 . 1 Storage 4 | 1 1 . . 1 . . 1 . . Processor 5 | . 1 . . . . 1 1 . 2 Hackware . | . . . . . . . . . . Protection . | . . . . . . . . . . Artifact . | . . . . . . . . . . Weapon 17 | 2 1 3 1 . . 2 5 2 1 Energy Gun 5 | 1 . 2 . . . . 1 1 . Energy Cannon . | . . . . . . . . . . Ballistic Gun 8 | 1 1 . 1 . . 2 2 . 1 Ballistic Cannon 1 | . . . . . . . . 1 . Launcher 2 | . . . . . . . 2 . . Special Weapon . | . . . . . . . . . . Impact Weapon . | . . . . . . . . . . Slashing Weapon . | . . . . . . . . . . Piercing Weapon . | . . . . . . . . . . Special Melee Weapon 1 | . . 1 . . . . . . . Unidentified Prototypes 2 | . . . . 1 . . 1 . . Parts Lost 20 | . 1 1 . . . 1 11 . 6 Power 2 | . . . . . . . 1 . 1 Propulsion 9 | . . . . . . 1 5 . 3 Utility 3 | . . . . . . . 2 . 1 Weapon 6 | . 1 1 . . . . 3 . 1 Highest Loss Streak 8 | . 1 1 . . . 1 8 . 3 To Critical Strikes . | . . . . . . . . . . Average Slot Usage (%) 91 | . 98 98 100 99 100 100 85 81 56 Engine 9 | . 14 11 11 10 11 9 7 9 4 Wheel 22 | . 28 33 33 33 33 36 . . . Hover 1 | . . . . . . . 16 . . Flight 8 | . . . . . . . 16 36 19 Device 8 | . . 11 11 11 11 9 8 9 6 Storage 10 | . 17 11 11 11 11 9 9 9 6 Processor 14 | . 8 11 11 11 11 18 14 18 19 Energy Gun 7 | . 3 17 11 11 11 9 3 . . Ballistic Gun 8 | . 24 1 7 11 11 9 5 . . Naked Turns . | . . . . . . . . . . Heaviest Build 54 | 13 23 17 17 51 51 51 54 20 20 Greatest Support 48 | 32 32 36 36 36 36 48 46 20 20 Greatest Overweight (x) 10 | 2 . . . 1 1 1 10 . 1 Average Overweight (x) . | . . . . . 1 1 . . . Largest Inventory Capacity 20 | 8 10 10 10 20 20 20 20 10 10 Average Capacity 15 | 7 9 10 10 18 20 20 17 10 10 Most Carried 20 | 6 10 10 10 11 19 20 20 9 10 Average Carried 12 | 3 8 7 9 9 15 18 15 6 9 Final Capacity 20 | 8 10 10 10 20 20 20 10 10 10 Final Carried 19 | 6 10 10 10 10 19 19 5 9 9 Class Distribution -------------------- 79% | Mutant 14% | Sprinter 6% | Scout Dominant Class ---------------- Mutant | -10/Materials Mutant | -9/Materials Mutant | -9/Mines Mutant | -9/Exiles Mutant | -8/Mines Mutant | -8/Materials Mutant | -8/Storage Sprinter | -8/Recycling Scout | -6/Factory Resources | -11 -10 -9 -9 -9 -8 -8 -8 -8 -6 ----------- Run | Jun Mat Mat Min Exi Min Mat Sto Rec Fac Matter Collected 945 | 204 92 95 17 . 30 42 165 270 30 Remotely . | . . . . . . . . . . Salvage Created 428 | . 145 59 41 . . 54 129 . . Parts 30 | . 7 7 6 . . 3 7 . . Haulers Intercepted . | . . . . . . . . . . Recyclers Shooed . | . . . . . . . . . . Parts Field Recycled . | . . . . . . . . . . Retrieved Matter . | . . . . . . . . . . Parts Self-Destructed . | . . . . . . . . . . Prevented . | . . . . . . . . . . Kills | -11 -10 -9 -9 -9 -8 -8 -8 -8 -6 ------- Run | Jun Mat Mat Min Exi Min Mat Sto Rec Fac Combat Hostiles Destroyed 19 | . 5 3 3 . . 4 4 . . Melee 1 | . . . . . . . 1 . . Guns 17 | . 5 3 3 . . 4 2 . . AOE 1 | . . . . . . . 1 . . Classes Destroyed 3 | . 2 . . . . . 1 . . Swarmer 14 | . 3 2 3 . . 4 2 . . Grunt 4 | . 2 1 . . . . 1 . . Sentry 1 | . . . . . . . 1 . . Best Kill Streak 4 | . 3 2 2 . . 4 1 . . Combat Bots Only 4 | . 3 2 2 . . 4 1 . . Max Kills in Single Turn 1 | . 1 1 1 . . 1 1 . . Gunslinging . | . . . . . . . . . . Exploded 1 | . . . . . . . 1 . . Melee 1 | . . . . . . . 1 . . Uniques/NPCs Destroyed . | . . . . . . . . . . Combat | -11 -10 -9 -9 -9 -8 -8 -8 -8 -6 -------- Run | Jun Mat Mat Min Exi Min Mat Sto Rec Fac Damage Taken 3268 | . 239 245 114 . . 380 983 43 1264 Core 1248 | . 69 45 28 . . 91 151 . 864 Absorbed by Shields . | . . . . . . . . . . Core Remaining (%) 77 | 100 72 . . . 81 . . 56 . Volleys Fired 99 | . 18 15 8 . . 22 27 . 9 Largest 2 | . 2 2 2 . . 2 2 . 1 Hottest 80 | . 60 80 60 . . 60 76 . 20 Shots Fired 159 | . 36 23 15 . . 44 32 . 9 Gun 151 | . 36 23 15 . . 44 24 . 9 Cannon . | . . . . . . . . . . Launcher 8 | . . . . . . . 8 . . Special . | . . . . . . . . . . Kinetic 89 | . 32 . 7 . . 22 19 . 9 Thermal 58 | . . 23 8 . . 22 5 . . Explosive 2 | . . . . . . . 2 . . Electromagnetic 10 | . 4 . . . . . 6 . . Robot Hit Streak 7 | . 5 5 1 . . 4 7 . 3 Robot Miss Streak 4 | . 3 4 2 . . 4 3 . 2 Penetration Max . | . . . . . . . . . . Secondary Targets 4 | . 1 . . . . 2 1 . . Max Gunslinging Chain 1 | . 1 . . . . 1 1 . . Shots Hit Robots 92 | . 22 14 8 . . 21 22 . 5 Core Hits 35 | . 10 5 3 . . 5 11 . 1 Critical Kills . | . . . . . . . . . . Critical Parts Destroyed . | . . . . . . . . . . Critical Strikes 1 | . . . . . . . 1 . . Burn 1 | . . . . . . . 1 . . Melee Attacks 5 | . . 2 3 . . . . . . Impact . | . . . . . . . . . . Slashing . | . . . . . . . . . . Piercing . | . . . . . . . . . . Sneak Attacks 3 | . . 2 1 . . . . . . Combat Hostiles . | . . . . . . . . . . Follow-up Attacks . | . . . . . . . . . . Damage Inflicted 974 | . 222 132 64 . . 208 302 . 46 Guns 759 | . 191 132 59 . . 208 123 . 46 Cannons . | . . . . . . . . . . Explosions 158 | . . . . . . . 158 . . Melee . | . . . . . . . . . . Ramming 57 | . 31 . 5 . . . 21 . . Kinetic 403 | . 164 . 26 . . 73 94 . 46 Thermal 329 | . . 132 33 . . 135 29 . . Explosive 45 | . . . . . . . 45 . . Electromagnetic 140 | . 27 . . . . . 113 . . Impact . | . . . . . . . . . . Slashing . | . . . . . . . . . . Piercing . | . . . . . . . . . . Highest Corruption 20 | . . . . . . 3 20 20 13 Average Corruption 11 | . . . . . . 2 9 20 7 Corruption Purged . | . . . . . . . . . . Corruption Blocked . | . . . . . . . . . . Effects 62 | . . . . . . 6 24 28 4 Message Errors 17 | . . . . . . . 8 8 1 Matter Fused 17 | . . . . . . 3 4 8 2 Heat Flow Errors 5 | . . . . . . . 1 3 1 Energy Discharges 4 | . . . . . . 2 1 1 . Parts Rejected 1 | . . . . . . . 1 . . Parts Fused 1 | . . . . . . . . 1 . Data Loss (minor) 9 | . . . . . . 1 4 4 . Data Loss (major) 2 | . . . . . . . 1 1 . Alerts 1 | . . . . . . . 1 . . Misdirections 2 | . . . . . . . . 2 . Weapon Failures 3 | . . . . . . . 3 . . Overload Shots . | . . . . . . . . . . Overflow Damage . | . . . . . . . . . . Projectiles . | . . . . . . . . . . Explosions . | . . . . . . . . . . Melee . | . . . . . . . . . . Knockbacks . | . . . . . . . . . . Impact . | . . . . . . . . . . Kinetic . | . . . . . . . . . . Secondary . | . . . . . . . . . . Self-Inflicted Damage 24 | . 13 . 2 . . . 9 . . Shots . | . . . . . . . . . . Rammed 11 | . 6 . 1 . . . 4 . . Targets Rammed 11 | . 6 . 1 . . . 4 . . Kicked . | . . . . . . . . . . Crushed . | . . . . . . . . . . Highest Temperature 179 | . 85 3 28 . . 20 107 179 170 Average Temperature 35 | . 44 3 13 . . 8 55 77 96 Received Heat Transfer 516 | . 87 87 . . . 72 270 . . Siege Activations . | . . . . . . . . . . Robots Corrupted . | . . . . . . . . . . Combat Hostiles . | . . . . . . . . . . Parts Fried 2 | . . . . . . . 2 . . Impact Corruptions . | . . . . . . . . . . Robots Melted . | . . . . . . . . . . Combat Hostiles . | . . . . . . . . . . Parts Melted 1 | . . . . . . . 1 . . Heat Transferred 823 | . . 300 75 . . 300 148 . . Parts Sabotaged . | . . . . . . . . . . Parts Stolen . | . . . . . . . . . . Parts Stripped . | . . . . . . . . . . Power Chain Reactions . | . . . . . . . . . . Missiles Intercepted . | . . . . . . . . . . Alert | -11 -10 -9 -9 -9 -8 -8 -8 -8 -6 ------- Run | Jun Mat Mat Min Exi Min Mat Sto Rec Fac Peak Influence 246 | . 180 246 185 . . 90 90 36 139 Initial 114 | . . 76 91 . . . 14 9 114 Average 49 | . 100 161 142 . . 17 25 10 98 Maximum Alert Level 1 | . . 1 . . . . . . . Low Security (%) 97 | 100 100 58 100 . 100 100 100 100 100 Level 1 2 | . . 41 . . . . . . . Level 2 . | . . . . . . . . . . Level 3 . | . . . . . . . . . . Level 4 . | . . . . . . . . . . Level 5 . | . . . . . . . . . . High Security . | . . . . . . . . . . Max Security . | . . . . . . . . . . Squads Dispatched 7 | . . 2 . . . 2 . . 3 Investigation 2 | . . . . . . 1 . . 1 Extermination 2 | . . . . . . . . . 2 Reinforcement 3 | . . 2 . . . 1 . . . Assault . | . . . . . . . . . . Garrison . | . . . . . . . . . . Intercept . | . . . . . . . . . . Searches Triggered . | . . . . . . . . . . Construction Impeded . | . . . . . . . . . . Haulers Reinforced . | . . . . . . . . . . Active Scanning Responses . | . . . . . . . . . . Cargo Convoy Interrupts . | . . . . . . . . . . Stealth | -11 -10 -9 -9 -9 -8 -8 -8 -8 -6 --------- Run | Jun Mat Mat Min Exi Min Mat Sto Rec Fac Distress Signals 8 | . 2 1 . . . 4 1 . . Communications Jammed . | . . . . . . . . . . Distress Signals . | . . . . . . . . . . Times Spotted 69 | . 14 14 10 . . 19 10 1 1 Peak Tracking Total 10 | . 4 6 5 . . 10 7 1 1 Tactical Retreats 13 | . 1 2 2 . . 2 5 1 . Traps | -11 -10 -9 -9 -9 -8 -8 -8 -8 -6 ------- Run | Jun Mat Mat Min Exi Min Mat Sto Rec Fac Traps Triggered 5 | . . . . . . 4 1 . . Indirectly . | . . . . . . . . . . Trap Hack Attempts . | . . . . . . . . . . Triggered . | . . . . . . . . . . Disarmed . | . . . . . . . . . . Reprogrammed . | . . . . . . . . . . Reused . | . . . . . . . . . . Traps Extracted . | . . . . . . . . . . Installed . | . . . . . . . . . . Triggered . | . . . . . . . . . . Machines | -11 -10 -9 -9 -9 -8 -8 -8 -8 -6 ---------- Run | Jun Mat Mat Min Exi Min Mat Sto Rec Fac Machines Disabled . | . . . . . . . . . . Max in Single Turn . | . . . . . . . . . . Garrison Access 1 | . . . . . . . 1 . . Machines Repaired . | . . . . . . . . . . Machines Sabotaged . | . . . . . . . . . . Overloaded Fab Kills . | . . . . . . . . . . Hacking | -11 -10 -9 -9 -9 -8 -8 -8 -8 -6 --------- Run | Jun Mat Mat Min Exi Min Mat Sto Rec Fac Machines Accessed 31 | . 6 1 . 5 . . 4 9 6 Terminals 15 | . 4 1 . . . . 2 4 4 Fabricators . | . . . . . . . . . . Repair Stations 2 | . . . . . . . 1 . 1 Recycling Units 7 | . 2 . . . . . . 5 . Scanalyzers . | . . . . . . . . . . Garrison Access 2 | . . . . . . . 1 . 1 Total Hacks 107 | . 10 3 . 50 . . 9 21 14 Successful 85 | . 8 2 . 50 . . 4 13 8 Failed 22 | . 2 1 . . . . 5 8 6 Catastrophic 2 | . . . . . . . . . 2 Database Lockouts . | . . . . . . . . . . Manual 5 | . . . . 3 . . . 1 1 Terminals 34 | . 6 3 . . . . 4 11 10 Fabricators . | . . . . . . . . . . Repair Stations 5 | . . . . . . . 3 . 2 Recycling Units 14 | . 4 . . . . . . 10 . Scanalyzers . | . . . . . . . . . . Garrison Access 4 | . . . . . . . 2 . 2 Terminal Hacks 73 | . 5 2 . 50 . . 2 8 6 Record 55 | . . . . 49 . . 1 3 2 Prototype ID Bank 5 | . 1 1 . . . . . 2 1 Open DSF 1 | . . . . . . . . . 1 Emergency Access Points 1 | . . . . . . . . . 1 Alert Level 1 | . . . . . . . . 1 . Locate Traps 4 | . 2 1 . . . . . . 1 Maintenance Status 1 | . . . . . . . . 1 . Reinforcement Status 1 | . . . . . . . 1 . . Hauler Manifests 1 | . 1 . . . . . . . . Zone Layout 2 | . 1 . . . . . . 1 . EX-Prototype ID Bank 1 | . . . . 1 . . . . . Fabricator Hacks . | . . . . . . . . . . Repair Station Hacks 2 | . . . . . . . . . 2 Scan Component 1 | . . . . . . . . . 1 Repair 1 | . . . . . . . . . 1 Recycling Unit Hacks 8 | . 3 . . . . . . 5 . Report Inventory 7 | . 2 . . . . . . 5 . Retrieve Components 1 | . 1 . . . . . . . . Scanalyzer . | . . . . . . . . . . Garrison Access Hacks 2 | . . . . . . . 2 . . Seal Access 1 | . . . . . . . 1 . . Coupler Status 1 | . . . . . . . 1 . . Unauthorized Hacks . | . . . . . . . . . . Terminals . | . . . . . . . . . . Fabricators . | . . . . . . . . . . Repair Stations . | . . . . . . . . . . Recycling Units . | . . . . . . . . . . Scanalyzers . | . . . . . . . . . . Garrison Access . | . . . . . . . . . . Data Cores Recovered . | . . . . . . . . . . Used . | . . . . . . . . . . Hacking Detections 13 | . 3 1 . . . . 2 4 3 Full Trace Events 4 | . . . . . . . 1 2 1 Feedback Events . | . . . . . . . . . . Feedback Blocked . | . . . . . . . . . . Robot Schematics Acquired . | . . . . . . . . . . Robots Built . | . . . . . . . . . . Authchips . | . . . . . . . . . . Time . | . . . . . . . . . . Total Robot Build Rating . | . . . . . . . . . . Part Schematics Acquired . | . . . . . . . . . . Parts Built . | . . . . . . . . . . Authchips . | . . . . . . . . . . Time . | . . . . . . . . . . Total Part Build Rating . | . . . . . . . . . . Parts Repaired . | . . . . . . . . . . Time 51 | . . . . . . . . . 51 Parts Recycled . | . . . . . . . . . . Recycled Matter . | . . . . . . . . . . Retrieved Matter . | . . . . . . . . . . Retrieved Components 4 | . 4 . . . . . . . . Parts Scanalyzed . | . . . . . . . . . . Part Schematics Acquired . | . . . . . . . . . . Parts Damaged . | . . . . . . . . . . Bothacking | -11 -10 -9 -9 -9 -8 -8 -8 -8 -6 ------------ Run | Jun Mat Mat Min Exi Min Mat Sto Rec Fac Used RIF Installer . | . . . . . . . . . . Robots Hacked 3 | . . 2 1 . . . . . . Non-combat 2 | . . 2 . . . . . . . Combat 1 | . . . 1 . . . . . . Robot Hacks Applied 3 | . . 2 1 . . . . . . parse_system 2 | . . 1 1 . . . . . . find_recycling 1 | . . 1 . . . . . . . Relay Couplers Released . | . . . . . . . . . . Fabnet Peak Effective % . | . . . . . . . . . . Robots Rewired . | . . . . . . . . . . Allies Hacked . | . . . . . . . . . . Hacks Repelled . | . . . . . . . . . . Allies | -11 -10 -9 -9 -9 -8 -8 -8 -8 -6 -------- Run | Jun Mat Mat Min Exi Min Mat Sto Rec Fac Total Allies 2 | . . . 1 . . . 1 . . Largest Group 1 | . . . 1 1 . . 1 . . Highest-Rated Group 100 | . . . 25 25 . . 100 . . Highest-Rated Ally 100 | . . . 25 25 . . 100 . . Total Orders . | . . . . . . . . . . Ally Attacks 5 | . . . 5 . . . . . . Total Damage 61 | . . . 61 . . . . . . Kills 1 | . . . 1 . . . . . . Allies Corrupted . | . . . . . . . . . . Allies Melted . | . . . . . . . . . . Intel | -11 -10 -9 -9 -9 -8 -8 -8 -8 -6 ------- Run | Jun Mat Mat Min Exi Min Mat Sto Rec Fac Robot Analysis Total . | . . . . . . . . . . Derelict Logs Recovered 1 | . . . 1 . . . . . . Drone Launches . | . . . . . . . . . . Drone Recoveries . | . . . . . . . . . . Exploration | -11 -10 -9 -9 -9 -8 -8 -8 -8 -6 ------------- Run | Jun Mat Mat Min Exi Min Mat Sto Rec Fac Turns Passed 5241 | 65 385 215 287 1065 423 1076 613 601 511 Spaces Moved 4503 | 50 308 176 187 944 395 390 422 648 983 Core 15 | 3 . . . . . . 12 . . Treads . | . . . . . . . . . . Legs . | . . . . . . . . . . Wheels 2457 | 47 308 176 187 944 395 390 10 . . Hover 206 | . . . . . . . 206 . . Flight 1825 | . . . . . . . 194 648 983 Fastest Speed 31 | 50 90 90 90 90 105 102 31 31 31 Average Speed 75 | 100 98 90 90 103 105 104 93 31 31 Slowest Speed 740 | 150 100 90 90 105 105 105 740 31 104 Overloaded Moves . | . . . . . . . . . . Propulsion Burnouts . | . . . . . . . . . . Robots Hopped 14 | . . . . . . . . 8 6 Cave-ins Triggered 1 | . . . . . . . 1 . . Exploration Rate (%) 47 | 3 46 25 48 94 75 27 32 99 23 Regions Visited 9 Branch Regions 5 Pre-discovered Areas 2 | . . . 1 1 . . . . . Known Exits Taken 8 | . 1 1 1 1 1 1 1 1 . Unknown Exits Taken 1 | 1 . . . . . . . . . Scrap Searched 3 | . . . 1 . 2 . . . . Spaces Dug . | . . . . . . . . . . Terrain Destroyed 19 | . . . . . . . 19 . . Melee . | . . . . . . . . . . Projectile . | . . . . . . . . . . AOE 19 | . . . . . . . 19 . . Terrain Rammed . | . . . . . . . . . . Walls Destroyed . | . . . . . . . . . . Machines Disabled . | . . . . . . . . . . Actions | -11 -10 -9 -9 -9 -8 -8 -8 -8 -6 --------- Run | Jun Mat Mat Min Exi Min Mat Sto Rec Fac Total 6212 | 61 362 210 292 1036 403 1018 615 1039 1176 Wait 1449 | . 10 . 83 83 . 599 108 392 174 Move 4470 | 49 307 175 186 943 394 389 421 633 973 Hop 10 | . . . . . . . . 6 4 Pick Up 48 | 6 8 5 5 2 9 1 4 3 5 Fast Attach 19 | 6 1 1 . . . . 7 2 2 Attach 32 | . 2 5 1 2 . 4 16 1 1 Detach 20 | . 1 3 . 2 . 1 10 2 1 Swap 11 | . 3 1 . 1 . 2 3 . 1 Drop 38 | . 6 3 5 3 . . 15 . 6 Fire 99 | . 18 15 8 . . 22 27 . 9 Melee 5 | . . 2 3 . . . . . . Ram 11 | . 6 . 1 . . . 4 . . Kick . | . . . . . . . . . . Crush . | . . . . . . . . . . Escape Stasis . | . . . . . . . . . . Rewire . | . . . . . . . . . . Trap . | . . . . . . . . . . Miscellaneous . | . . . . . . . . . . Route ------- -11/Junkyard -10/Materials (discovered 2 exits: *Mat x2) -9/Materials -9/Mines (discovered 2 exits: *Mat / *Exi) -9/Exiles (discovered 2 exits: *Min x2) -8/Mines (discovered 2 exits: *Mat x2) -8/Materials (discovered 2 exits: [*Fac] / *Sto) -8/Storage -8/Recycling -6/Factory (discovered 1 exit: [*Low]) History --------- Turn | Location | Event 10 | -11/Junkyard | Discovered new exit (range 16) 66 | -11/Junkyard | Entered Materials 307 | -10/Materials | Build established: Mutant 349 | -10/Materials | Discovered new exit (range 12) 366 | -10/Materials | Discovered new exit (range 17) 450 | -10/Materials | Identified exit to Materials 451 | -10/Materials | Entered another Materials area 451 | -9/Materials | Evolved 2 slots: Propulsion x1, Utility x1 588 | -9/Materials | Discovered new exit (range 7) 596 | -9/Materials | Identified exit to Mines 598 | -9/Materials | Met 8R-AWN 666 | -9/Materials | Entered Mines 667 | -9/Mines | Followed 8R-AWN into the Mines 675 | -9/Mines | Learned Materials terminal intel 760 | -9/Mines | Met a Derelict bent on vengeance 788 | -9/Mines | Discovered new exit (range 9) 794 | -9/Mines | Escorted by a lone wolf Derelict 814 | -9/Mines | Learned location of Storage (-8) 945 | -9/Mines | Discovered new exit (range 5) 952 | -9/Mines | Identified exit to Exiles 953 | -9/Mines | Entered Exiles 953 | -9/Exiles | Accompanied by 1 ally 1032 | -9/Exiles | Welcomed by 8R-AWN 1045 | -9/Exiles | Met EX-HEX 1147 | -9/Exiles | Met EX-DEC 1206 | -9/Exiles | Learned location of Zion (-6) 1259 | -9/Exiles | Discovered new exit (range 12) 1355 | -9/Exiles | Visited The Gauntlet 1533 | -9/Exiles | Learned about 8R-AWN's background 1565 | -9/Exiles | Discovered new exit (range 15) 1578 | -9/Exiles | Identified exit to Mines 1680 | -9/Exiles | Met EX-BIN 1722 | -9/Exiles | Aligned with FarCom system 1723 | -9/Exiles | Given EX-Vault access code 1852 | -9/Exiles | Opened EX-Vault 1907 | -9/Exiles | Found Modified TNC 1929 | -9/Exiles | Warned to stay clear of 0b10 Research branches 2018 | -9/Exiles | Left Exiles lab with Modified TNC 2018 | -9/Exiles | Entered Mines 2136 | -8/Mines | Discovered new exit (range 6) 2153 | -8/Mines | Identified exit to Materials 2257 | -8/Mines | Discovered exit to Materials (range 8) 2441 | -8/Mines | Entered Materials 2441 | -8/Materials | Evolved 2 slots: Propulsion x1, Utility x1 2442 | -8/Materials | Loaded intel: 12 terminal locations 3487 | -8/Materials | Discovered new exit (range 16) 3502 | -8/Materials | Discovered new exit (range 15) 3516 | -8/Materials | Identified exit to Storage 3517 | -8/Materials | Entered Storage 3906 | -8/Storage | Crushed by falling debris 3906 | -8/Storage | System corruption reached 10% 3962 | -8/Storage | Lost 8 parts (1p4n2u1w) 4101 | -8/Storage | Met 01-MTF 4129 | -8/Storage | Discovered new exit (range 4) 4130 | -8/Storage | Identified exit to Recycling 4130 | -8/Storage | Entered Recycling 4130 | -8/Recycling | Accompanied by 1 ally (01-MTF) 4135 | -8/Recycling | 01-MTF left 4391 | -8/Recycling | Build established: Sprinter 4661 | -8/Recycling | Discovered new exit (range 8) 4663 | -8/Recycling | Identified exit to Factory 4731 | -8/Recycling | Entered Factory 4731 | -6/Factory | Evolved 4 slots: Power x1, Propulsion x2, Utility x1 4743 | -6/Factory | Identified exit to DSF 5021 | -6/Factory | Discovered new exit (range 17) 5048 | -6/Factory | Build established: Scout 5123 | -6/Factory | Lost 3 parts (1p1n1w) 5168 | -6/Factory | Core integrity fell below 50% 5201 | -6/Factory | System corruption reached 10% 5210 | -6/Factory | Core integrity fell below 20% 5242 | -6/Factory | Destroyed by P-60 Hacker with Shock Rifle Last Messages --------------- 05089_ Lgt. Deuterium Engine destroyed. 05089_ Imp. Flight Unit destroyed. 05092_ Lgt. Assault Rifle destroyed. 05125_ Imp. Flight Unit destroyed. 05133_ K-01 Serf cleans the Construction Platform. 05149_ W#S,AQBSY IB%PH|MI:UVJZ 05152_ K-01 Serf cleans the Construction Platform. 05168_ K-01 Serf collects debris. 05173_ Imp. Flight Unit destroyed. 05176_ K-01 Serf collects debris. 05177_ System corrupted: Matter fused (-10). 05179_ K-01 Serf collects debris. 05180_ ALERT: Security rotation in progress. 05193_ System corrupted: Matter fused (-5). 05200_ K-01 Serf cleans the Construction Platform. 05212_ System corrupted: Heat flow error (+207). 05214_ K-01 Serf cleans the Construction Platform. 05227_ Imp. Trap Scanner destroyed. 05231_ ALERT: Rogue bot located, Programmers report to Factory Zone 4A. 05232_ K-01 Serf cleans the Construction Platform. Map ----- +----------------------------------------------------+ | ?????????????????# ???????????????????????? | | ?????????????????+ ???????????????????????? | | ?????????????????# ???????????????????????? | | ?????????????????+ ???????????????????????? | | ?????????????????# ???????????????????????? | | ?????????????????? ???????????????????##### | | ?????????????????? ?????????????????? | | ??????????????????? ????????????????# ? | | ???????????????????# #????????????????#/ | | ???????????????????# #????????????????# " " " | | ???????????????????# #????????????????# " " " | | ???????????????????# #????????????????# " " " | | ???????????????????# #????????????????# " " " | | ???????????????????# #????????????????# " " " | | ???????????????????# ########?????????# " " " | | ?????????## ######## #?????????# " " " | | ?????????# #?????????# " " " | | ?????????# #?????????# " " " | | ?????????# #?????????# | | ???????????????????# #?????????# | | ????????????###########+### ########### | | ???????????H+ Ak # ## #####+#+# | | ????????????# """"""" p # ##### | | ??????????????""""""" # | | ??????????????""""""" # < | | ??????????????""""""" " @# | | ????????????# " # ##### | | ????????????##################/### #???# | | ????????????????????# || ! ### ###???# | | ????????????????????#" |* #?# ####??# | | ????????????????????#T #?# #??# | | ????????????????????#" """"""""" #?# #??# | | ????????????????????# #?# #??# | | ???????############?###+#############+###+#### | | ???????# ! #???# #??????# [ !# | | ???????? #???# #??????# # | | ???????# """" #???# #??????# """ """ """ # | | ???????# """" ##### ######## """ """ """ # | | ???????+ """" ## + """ """ """ # | | ???????# """" ## ######## # | | ???????# ## #??????############### | | ???????# """" + ##+###########??????????# | | ???????# """" ## # #??????????# | | ???????# """" ## # """"""""" #??????????# | | ???????# """" ## # #??????????? | | ???????# ## # """"""""" #??????????? | | ???????# ## # #??????????????? | | ???????# + # """"""""" #??????????????? | | ???????# # # #??????????????? | | ???????######+##### # """"""""" #??????????????? | +----------------------------------------------------+ Best States ------------- Heat Dissipation 51 Energy Generation 14 Energy Capacity 275 Matter Stores 300 Matter Capacity 300 Sight Range 22 Terrain Scan Density 10 ECM Strength 1 Evasion (%) 63 Item Schematics ----------------- None Robot Schematics ------------------ None Fabricated ------------ Nothing Alien Tech Used ----------------- None Achievements -------------- Fist Fight Librarian Challenges ------------ None Game ------ Seed ChainSigixBattery Manual? 0 Play Time 01:25:42 Cumulative 11.9 hours Start 2023.11.15 @ 20:59:19 End 2023.11.16 @ 08:07:20 Sessions 3 Manual Loads 0 Difficulty Rogue Special Mode None Game No. 15 Rogue 15 Adventurer 0 Explorer 0 Win Type - Total 0 Types 0/0/0/0/0/0/0/0/0 Lore% 18 Gallery% 15 Achievement% 14 Wizard Run 0 Options --------- ASCII 0 Keyboard 1 Movement Vi Keybinds 0 Fullscreen 1 Font 24/Smallcaps Map View 183x50 Tactical HUD 1 Map Filters NONE Filters NONE Steam 1 RUN: 23a1b300-9be3-4efb-b9e5-e8550f6b7b40